﻿Department Family,Entity,Date,Expense Type,Expense Area,Supplier,Transaction Number,AP Amount,Purchase Invoice Number,,
Department of Health,Royal Papworth Hospital NHS Foundation Trust,12/31/2023,Contr Estate Management,Engineering,AQUA FREE SOLUTIONS LTD,49405415,"67,516.50",25001285,,
Department of Health,Royal Papworth Hospital NHS Foundation Trust,12/31/2023,Extrnl Rehrge : Recivd,Clinical Perfusion,CAMBRIDGE PERFUSION SERVICES LLP,49307250,"134,241.02",2439,,
Department of Health,Royal Papworth Hospital NHS Foundation Trust,12/31/2023,Extrnl Rehrge : Recivd,ECMO program,CAMBRIDGE PERFUSION SERVICES LLP,49307253,"94,897.74",2442,,
Department of Health,Royal Papworth Hospital NHS Foundation Trust,12/31/2023,Miscellaneous Expenditure,Reserves - central budgets,CAMBRIDGE UNIVERSITY HEALTH PARTNERS,49382830,"28,800.00",80405449,,
Department of Health,Royal Papworth Hospital NHS Foundation Trust,12/31/2023,Laboratory External Tests,Histopathology,CAMBRIDGE UNIVERSITY HOSPITALS NHS FOUNDATION TRUST,49330908,"39,945.48",1203598,,
Department of Health,Royal Papworth Hospital NHS Foundation Trust,12/31/2023,Laboratory External Tests,External Pathology,CAMBRIDGE UNIVERSITY HOSPITALS NHS FOUNDATION TRUST,49346964,"171,786.16",1203775,,
Department of Health,Royal Papworth Hospital NHS Foundation Trust,12/31/2023,Extrnl Rehrge : Recivd,Medical Staffing - Specialist,CAMBRIDGE UNIVERSITY HOSPITALS NHS FOUNDATION TRUST,49430890,"25,000.00",71005358,,
Department of Health,Royal Papworth Hospital NHS Foundation Trust,12/31/2023,Extrnl Rehrge : Recivd,Medical Staffing - Specialist,CAMBRIDGE UNIVERSITY HOSPITALS NHS FOUNDATION TRUST,49419626,"50,000.00",71005359,,
Department of Health,Royal Papworth Hospital NHS Foundation Trust,12/31/2023,Extrnl Rehrge : Recivd,Medical Staffing - Specialist,CAMBRIDGE UNIVERSITY HOSPITALS NHS FOUNDATION TRUST,49430910,"25,000.00",71005383,,
Department of Health,Royal Papworth Hospital NHS Foundation Trust,12/31/2023,Extrnl Rehrge : Recivd,Medical Staffing - Specialist,CAMBRIDGE UNIVERSITY HOSPITALS NHS FOUNDATION TRUST,49419624,"50,000.00",71005384,,
Department of Health,Royal Papworth Hospital NHS Foundation Trust,12/31/2023,Extrnl Rehrge : Recivd,Medical Staffing - Specialist,CAMBRIDGE UNIVERSITY HOSPITALS NHS FOUNDATION TRUST,49419620,"25,000.00",71005409,,
Department of Health,Royal Papworth Hospital NHS Foundation Trust,12/31/2023,Extrnl Rehrge : Recivd,Medical Staffing - Specialist,CAMBRIDGE UNIVERSITY HOSPITALS NHS FOUNDATION TRUST,49419622,"50,000.00",71005410,,
Department of Health,Royal Papworth Hospital NHS Foundation Trust,12/31/2023,SrvcsRecd-FoundationTrust,Palliative And Supportive Care,CAMBRIDGESHIRE & PETERBOROUGH NHS FOUNDATION TRUST,49458076,"29,570.58",67585399,,
Department of Health,Royal Papworth Hospital NHS Foundation Trust,12/31/2023,Computer Maintenance,Sitewide I T,DH OPCO UK LTD,49133796,"386,457.66",HGBSI23000721,,
Department of Health,Royal Papworth Hospital NHS Foundation Trust,12/31/2023,Specialist Registrar,Jnr Med Staff Anaesthetics,EAST&NORTH HERTFORDSHIRE NHS TRUST,49430607,"31,791.42",4190504,,
Department of Health,Royal Papworth Hospital NHS Foundation Trust,12/31/2023,Electricity,Energy,EDF ENERGY 1 LTD,49340005,"-178,203.54",000017373247,,
Department of Health,Royal Papworth Hospital NHS Foundation Trust,12/31/2023,Electricity,Energy,EDF ENERGY 1 LTD,49382778,"177,962.34",000017373265,,
Department of Health,Royal Papworth Hospital NHS Foundation Trust,12/31/2023,Electricity,Energy,EDF ENERGY 1 LTD,49303792,"-75,099.45",000017394136,,
Department of Health,Royal Papworth Hospital NHS Foundation Trust,12/31/2023,Electricity,Energy,EDF ENERGY 1 LTD,49430655,"74,837.02",000017394144,,
Department of Health,Royal Papworth Hospital NHS Foundation Trust,12/31/2023,Electricity,Energy,EDF ENERGY 1 LTD,49393134,"-177,962.34",000017394208,,
Department of Health,Royal Papworth Hospital NHS Foundation Trust,12/31/2023,Electricity,Energy,EDF ENERGY 1 LTD,49493601,"95,542.14",000017473763,,
Department of Health,Royal Papworth Hospital NHS Foundation Trust,12/31/2023,Electricity,Energy,EDF ENERGY 1 LTD,49493605,"131,967.66",000017476313,,
Department of Health,Royal Papworth Hospital NHS Foundation Trust,12/31/2023,External Consultancy Fees,Finance,ERNST & YOUNG LLP,49341814,"165,390.00",GB01G000475396,,
Department of Health,Royal Papworth Hospital NHS Foundation Trust,12/31/2023,Various,Various,INLAND REVENUE CIS,49406332,"3,010,254.39",126PQ001177772408,,
Department of Health,Royal Papworth Hospital NHS Foundation Trust,12/31/2023,Drugs,Balance Sheet,LLOYDS PHARMACY CLINICAL HOMECARE LTD,49396220,"349,347.68",LPCHDEC23CONS01,,
Department of Health,Royal Papworth Hospital NHS Foundation Trust,12/31/2023,Drugs,Balance Sheet,LLOYDS PHARMACY CLINICAL HOMECARE LTD,49396221,"365,227.12",LPCHDEC23CONS02,,
Department of Health,Royal Papworth Hospital NHS Foundation Trust,12/31/2023,Drugs,Balance Sheet,LLOYDS PHARMACY CLINICAL HOMECARE LTD,49396222,"317,588.80",LPCHDEC23CONS03,,
Department of Health,Royal Papworth Hospital NHS Foundation Trust,12/31/2023,Drugs,Balance Sheet,LLOYDS PHARMACY CLINICAL HOMECARE LTD,49396223,"64,169.82",LPCHDEC23CONS04,,
Department of Health,Royal Papworth Hospital NHS Foundation Trust,12/31/2023,Various,Various,NPH HEALTHCARE LTD,49445233,"1,458,990.36",1707,,
Department of Health,Royal Papworth Hospital NHS Foundation Trust,12/31/2023,Ext Contr Oth Hotel Srv,Sterilisation/Cssd,NUFFIELD HEALTH,49392100,"56,410.93",ARIN00089123,,
Department of Health,Royal Papworth Hospital NHS Foundation Trust,12/31/2023,Drugs,Balance Sheet,POLAR SPEED DISTRIBUTION LTD,49460800,"27,105.00",PCDEC23CONS09,,
Department of Health,Royal Papworth Hospital NHS Foundation Trust,12/31/2023,Drugs,Balance Sheet,POLAR SPEED DISTRIBUTION LTD,49460792,"33,429.50",PSDEC23CONS01,,
Department of Health,Royal Papworth Hospital NHS Foundation Trust,12/31/2023,Drugs,Balance Sheet,POLAR SPEED DISTRIBUTION LTD,49460793,"34,333.00",PSDEC23CONS02,,
Department of Health,Royal Papworth Hospital NHS Foundation Trust,12/31/2023,Drugs,Balance Sheet,POLAR SPEED DISTRIBUTION LTD,49460795,"29,815.50",PSDEC23CONS04,,
Department of Health,Royal Papworth Hospital NHS Foundation Trust,12/31/2023,Drugs,Balance Sheet,POLAR SPEED DISTRIBUTION LTD,49460796,"31,622.50",psdec23cons05,,
Department of Health,Royal Papworth Hospital NHS Foundation Trust,12/31/2023,Drugs,Balance Sheet,POLAR SPEED DISTRIBUTION LTD,49460797,"30,719.00",PSDEC23CONS06,,
Department of Health,Royal Papworth Hospital NHS Foundation Trust,12/31/2023,Drugs,Balance Sheet,POLAR SPEED DISTRIBUTION LTD,49460798,"26,201.50",PSDEC23CONS07,,
Department of Health,Royal Papworth Hospital NHS Foundation Trust,12/31/2023,Drugs,Balance Sheet,POLAR SPEED DISTRIBUTION LTD,49460801,"31,622.50",PSDEC23CONS10,,
Department of Health,Royal Papworth Hospital NHS Foundation Trust,12/31/2023,Drugs,Balance Sheet,POLAR SPEED DISTRIBUTION LTD,49460802,"29,815.50",PSDEC23CONS11,,
Department of Health,Royal Papworth Hospital NHS Foundation Trust,12/31/2023,Drugs,Balance Sheet,SCIENSUS PHARMA SERVICES LTD,49405988,"365,227.12",HCS1211520,,
Department of Health,Royal Papworth Hospital NHS Foundation Trust,12/31/2023,Drugs,Balance Sheet,SCIENSUS PHARMA SERVICES LTD,49405987,"349,347.68",SCIDEC23CONS01,,
Department of Health,Royal Papworth Hospital NHS Foundation Trust,12/31/2023,Drugs,Balance Sheet,SCIENSUS PHARMA SERVICES LTD,49405989,"285,829.92",SCIDEC23CONS03,,
Department of Health,Royal Papworth Hospital NHS Foundation Trust,12/31/2023,Drugs,Balance Sheet,SCIENSUS PHARMA SERVICES LTD,49405990,"238,191.60",SCIDEC23CONS04,,
Department of Health,Royal Papworth Hospital NHS Foundation Trust,12/31/2023,Drugs,Balance Sheet,SCIENSUS PHARMA SERVICES LTD,49405991,"59,030.10",SCIDEC23CONS05,,
Department of Health,Royal Papworth Hospital NHS Foundation Trust,12/31/2023,Computer Hardware Purch,Cardiac Physiology,SPACELABS HEALTHCARE LTD,49533585,"28,947.59",IN327268,,
Department of Health,Royal Papworth Hospital NHS Foundation Trust,12/31/2023,Other Liabilities - Curr,Balance Sheet,SUPPLY CHAIN COORDINATION LIMITED,49330932,"92,283.47",1124239775,,
Department of Health,Royal Papworth Hospital NHS Foundation Trust,12/31/2023,Other Liabilities - Curr,Balance Sheet,SUPPLY CHAIN COORDINATION LIMITED,49330930,"540,344.70",1124242666,,
Department of Health,Royal Papworth Hospital NHS Foundation Trust,12/31/2023,Other Liabilities - Curr,Balance Sheet,SUPPLY CHAIN COORDINATION LIMITED,49393132,"86,708.43",1124245705,,
Department of Health,Royal Papworth Hospital NHS Foundation Trust,12/31/2023,Other Liabilities - Curr,Balance Sheet,SUPPLY CHAIN COORDINATION LIMITED,49393131,"894,998.68",1124249659,,
Department of Health,Royal Papworth Hospital NHS Foundation Trust,12/31/2023,Other Liabilities - Curr,Balance Sheet,SUPPLY CHAIN COORDINATION LIMITED,49458070,"92,433.25",1124251780,,
Department of Health,Royal Papworth Hospital NHS Foundation Trust,12/31/2023,Other Liabilities - Curr,Balance Sheet,SUPPLY CHAIN COORDINATION LIMITED,49458077,"1,071,090.68",1124256858,,
Department of Health,Royal Papworth Hospital NHS Foundation Trust,12/31/2023,Building Contracts,HLRI,UNIVERSITY OF CAMBRIDGE,49527019,"38,047.00",5033092,,
Department of Health,Royal Papworth Hospital NHS Foundation Trust,12/31/2023,Grants,"Valve, Donor Organ & Devices",UNIVERSITY OF CAMBRIDGE,49303731,"28,145.83",AQ1016260,,
